[Event "Mitropa Cup Women 2024"]
[Site "Apolda"]
[Date "2024.02.19"]
[Round "5.17"]
[White "Schneider, Jana"]
[Black "Cvitan, Ena"]
[Result "1/2-1/2"]
[ECO "B15"]
[WhiteElo "2331"]
[BlackElo "2242"]
[Annotator "TA"]
[PlyCount "68"]
[EventDate "2024.02.15"]
[EventType "team-tourn"]
[EventCountry "GER"]
[SourceTitle "playchess.com"]
[Source "ChessBase"]
[SourceQuality "1"]
[WhiteTeam "Germany"]
[BlackTeam "Croatia"]
[WhiteTeamCountry "GER"]
[BlackTeamCountry "CRO"]
[TimeControl "40/5400+30:1800+30"]

{[%evp 14,68,35,34,37,35,38,27,28,24,32,33,20,27,25,6,26,23,38,32,102,66,60,45,58,52,56,39,60,10,36,-21,-14,-26,-33,-111,0,0,0,-69,29,-43,-40,-33,-43,-73,-62,-74,12,-66,-52,-58,0,0,0,-52,0]} 1. e4 {[%emt 0:00:04]} c6 {[%emt 0:00:14]} 2. d4 {[%emt 0:00:09]} d5 {[%emt 0:00:08]} 3. Nc3 {[%emt 0:00:09]} dxe4 {[%emt 0:00:50]} 4. Nxe4 {[%emt 0:00:08]} Nf6 {[%emt 0:01:58]} 5. Nxf6+ {[%emt 0:00:10]} exf6 {[%emt 0:00:08]} 6. c3 {[%emt 0:00:12][%cal Bc2c3,Bc3c4,Bc4c5][%mdl 32]} Bd6 {[%emt 0:00:29]} 7. Bd3 {[%emt 0:00:21]} O-O {[%emt 0:00:36]} 8. Qc2 {[%emt 0:00:10] Active counter play!} Re8+ {[%emt 0:00:42]} 9. Ne2 {[%emt 0:00:16]} h5 {[%emt 0:00:59]} 10. Be3 {[%emt 0:00:34]} Nd7 {[%emt 0:01:47] White has an edge.} 11. c4 {[%emt 0:01:16]} Nf8 {[%emt 0:06:45][%cal Of6f5]} 12. O-O-O {[%emt 0:00:28]} Be6 {[%emt 0:01:39]} 13. Kb1 {[%emt 0:00:30]} Rc8 {[%emt 0:00:43][%cal Ob7b5]} 14. a3 {[%emt 0:01:23]} b5 {[%emt 0:13:47]} 15. c5 {[%emt 0:02:16]} Bc7 {[%emt 0:01:34]} 16. Nc3 {[%emt 0:07:39][%cal Od4d5]} Bd5 {[%emt 0:02:13]} (16... Ng6 $14) 17. Nxd5 {[%emt 0:01:00]} (17. Be2 {with more complications.} Bxg2 18. Rhg1 Bd5 19. Bh6) 17... Qxd5 {[%emt 0:04:25]} 18. Be2 {[%emt 0:01:32] Prevents g6} Qxg2 {[%emt 0:05:57]} 19. Bxh5 {[%emt 0:21:56]} Qh3 {[%emt 0:08:12] Repels Qf5} 20. Be2 {[%emt 0:03:27]} Ne6 {[%emt 0:05:59][%cal Oc7f4]} 21. Bd3 {[%emt 0:04:00]} (21. Rhg1 $14) 21... Qh4 $11 {[%emt 0:04:19][%cal Oc8d8]} 22. Rhg1 {[%emt 0:16:58]} (22. Be4 $14 Bf4 23. Rhe1) 22... Rcd8 $1 {[%emt 0:07:53]} 23. Qc3 {[%emt 0:10:35]} Rd5 {[%emt 0:04:05]} (23... Qxh2 24. Be4 Nxc5 25. Bxc6 (25. Qxc5 Rxe4 26. Qxc6 Re6 $11) (25. Bc2 Ne4 $14) 25... Qh7+ 26. Ka1 $16) (23... Nxd4 $6 24. Bxd4 Rxd4 25. Qxd4 Qxd4 26. Bh7+ Kxh7 27. Rxd4 $16) (23... Bxh2 $2 24. Rh1 $18) 24. Be2 {[%emt 0:04:07] [#] Repels f5} (24. Bc2 $15) 24... Qe4+ {[%emt 0:03:06]} (24... Qxh2 25. Bf3 Qh7+ 26. Ka1 $11) (24... Nxd4 $1 $17 25. Rxd4 Rxd4 (25... Qxh2 $2 26. Rdg4 $18) 26. Qxd4 Qxd4 (26... Qxh2 $2 27. Rd1 $18) 27. Bxd4 Rxe2 28. Bxf6 g6 (28... Rxf2 29. Bd4 $17)) 25. Bd3 {[%emt 0:04:18]} Qh4 {[%emt 0:00:22][%cal Of6f5]} 26. Bf1 {[%emt 0:02:33]} (26. Be2 $11) 26... Ng5 {[%emt 0:08:55]} (26... Qxh2 $6 27. Bg2 Red8 28. Be4 $14) ({Black should try} 26... Be5 $1 $15 27. Bg2 Bxd4 (27... Bxh2 $2 28. Bxd5 cxd5 29. Rh1 $18) (27... Rxc5 $2 28. Qe1 $18) 28. Bxd4 Rxd4 29. Bxc6 Rxd1+ 30. Rxd1 Rc8 31. Bxb5 Rxc5 32. Rd8+ Nxd8 (32... Kh7 33. Qd3+ g6 34. Rd7 $15) 33. Qxc5 Ne6 34. Qxa7 Qe4+ 35. Kc1 g6) 27. Bg2 {[%emt 0:01:06]} (27. Bxg5 $11 Rxg5 (27... fxg5 $2 28. Bg2 $18) 28. Rxg5 fxg5 29. Qf3) 27... Ne4 $15 {[%emt 0:00:06]} 28. Qc2 {[%emt 0:00:22] [#] Threatens to win with f3.} f5 $1 {[%emt 0:01:18]} (28... Bxh2 $2 29. Rh1 f5 30. f4 $18) 29. Rde1 {[%emt 0:02:38][%cal Oe3g5]} Re6 {[%emt 0:01:24]} (29... Bxh2 $2 30. Rh1 $18) 30. Rd1 {[%emt 0:04:03]} Qh7 {[%emt 0:02:35]} ({Stronger than} 30... Bxh2 31. Rh1 $18) (30... g6 $17 {[%cal Oa7a5]} 31. Rge1 Bf4 (31... Bxh2 $2 {too greedy.} 32. Rh1 $18) (31... Qxh2 32. f3 $11)) 31. Bf3 {[%emt 0:02:22]} (31. f3 $11 Nf6 32. Bg5) 31... Qh3 $1 {[%emt 0:04:34]} 32. Bg2 {[%emt 0:00:39]} Qh7 {[%emt 0:01:57]} ({Better is} 32... Qxh2 $15 33. Qe2 Qh7) 33. Bf3 $11 {[%emt 0:00:03]} Qh3 {[%emt 0:02:33]} ({Resist} 33... Bxh2 34. Rh1 $15) (33... Qh4 $11) 34. Bg2 $15 {[%emt 0:00:10]} Qh7 {[%emt 0:01:57] Weighted Error Value: White=0.23 (precise) /Black=0.21 (precise) .  Mistake:       	White=6     	Black=7      Inaccurate:     	White=2     	---        OK:         	White=9     	Black=8      Best:        	White=3     	Black=2      Strong:       	---       	Black=3} (34... Qh4 $15) 1/2-1/2

[Event "Mitropa Cup Women 2024"]
[Site "Apolda"]
[Date "2024.02.19"]
[Round "5.18"]
[White "Medic, Mirjana"]
[Black "Klek, Hanna Marie"]
[Result "1/2-1/2"]
[ECO "D04"]
[WhiteElo "2151"]
[BlackElo "2284"]
[Annotator "TA"]
[PlyCount "100"]
[EventDate "2024.02.15"]
[EventType "team-tourn"]
[EventCountry "GER"]
[SourceTitle "playchess.com"]
[Source "ChessBase"]
[SourceQuality "1"]
[WhiteTeam "Croatia"]
[BlackTeam "Germany"]
[WhiteTeamCountry "CRO"]
[BlackTeamCountry "GER"]
[TimeControl "40/5400+30:1800+30"]

{[%evp 12,100,0,-4,0,0,0,-9,0,-4,-4,-16,0,0,0,-13,15,-3,8,-35,-14,0,0,-27,-5,-33,-39,-38,-34,-35,-20,-19,0,-13,-18,-12,-11,-20,-14,-21,0,-32,-37,-59,-15,-70,-66,-79,-51,-53,-51,-47,-41,-39,-37,-45,-39,-45,-16,-15,-6,-25,-15,-22,-22,-66,-45,-81,-80,-89,-57,-57,-57,-52,-52,-52,-52,-57,-52,-52,-52,-57,-52,-52,-45,-52,-52,-52,-52,-52,-3]} 1. d4 {[%emt 0:00:03]} Nf6 {[%emt 0:00:05]} 2. Nf3 {[%emt 0:00:25]} d5 {[%emt 0:00:07]} 3. e3 {[%emt 0:00:53]} c5 {[%emt 0:00:13]} 4. b3 {[%emt 0:01:09]} cxd4 {[%emt 0:00:12]} 5. exd4 {[%emt 0:00:07]} Nc6 {[%emt 0:00:09]} 6. Bb2 {[%emt 0:01:04]} Bg4 {[%emt 0:02:21]} 7. Be2 {[%emt 0:01:51]} e6 {[%emt 0:01:47]} 8. O-O {[%emt 0:03:06]} Bd6 {[%emt 0:01:57]} 9. Nbd2 {[%emt 0:05:03]} O-O {[%emt 0:06:03] The position is equal.} 10. Ne5 {[%emt 0:16:07]} Bxe2 {[%emt 0:00:33]} 11. Qxe2 {[%emt 0:00:06]} Rc8 {[%emt 0:06:37]} 12. c4 {[%emt 0:04:10]} Qa5 {[%emt 0:08:43]} 13. a3 {[%emt 0:14:38]} Qa6 {[%emt 0:05:18]} 14. Rfe1 {[%emt 0:01:01]} dxc4 {[%emt 0:06:54]} 15. Ndxc4 {[%emt 0:02:35]} Bb8 {[%emt 0:05:10]} 16. Rad1 {[%emt 0:05:20]} Ne7 {[%emt 0:05:57]} 17. Ng4 {[%emt 0:13:15]} Nfd5 {[%emt 0:01:16]} 18. Qf3 {[%emt 0:00:57]} b5 {[%emt 0:01:56]} 19. Nce3 {[%emt 0:00:59]} Qd6 {[%emt 0:01:55]} 20. g3 {[%emt 0:01:42]} a6 {[%emt 0:04:18]} 21. Rc1 {[%emt 0:00:52]} Ba7 {[%emt 0:10:29]} 22. Nxd5 {[%emt 0:03:30]} Qxd5 {[%emt 0:03:22]} 23. Qxd5 {[%emt 0:00:11]} Nxd5 {[%emt 0:00:05]} 24. Ne5 {[%emt 0:00:57]} Ne7 {[%emt 0:07:04]} 25. Kf1 {[%emt 0:07:45]} Rfd8 {[%emt 0:01:29]} 26. Rxc8 {[%emt 0:01:03]} Rxc8 {[%emt 0:00:23]} 27. Re2 {[%emt 0:00:17]} f6 {[%emt 0:05:18]} 28. Nf3 {[%emt 0:01:56]} (28. Nd7 $11) 28... Kf7 $15 {[%emt 0:00:11]} 29. Rd2 {[%emt 0:00:24]} Ke8 {[%emt 0:03:02]} 30. Ke2 {[%emt 0:01:20]} Kd7 {[%emt 0:00:08]} 31. Ne1 {[%emt 0:02:02]} Kd6 {[%emt 0:03:48]} 32. Rc2 {[%emt 0:00:51]} Nc6 {[%emt 0:01:06][%cal Oa7b6]} 33. Rd2 {[%emt 0:00:08]} Na5 {[%emt 0:01:43]} 34. Rd3 {[%emt 0:00:50]} Kd5 {[%emt 0:00:20]} 35. Kd2 {[%emt 0:00:34]} h5 {[%emt 0:04:40]} 36. Nc2 {[%emt 0:01:33]} Nc6 {[%emt 0:00:11]} 37. Ne3+ {[%emt 0:00:50]} Kd6 {[%emt 0:00:08]} 38. h3 {[%emt 0:00:26]} Ne7 {[%emt 0:00:31]} 39. a4 {[%emt 0:04:20] [#]} Nd5 $1 {[%emt 0:01:07]} 40. Nc2 {[%emt 0:00:34]} Rxc2+ {[%emt 0:01:05]} 41. Kxc2 $17 {[%emt 0:30:08][%mdl 4096] Endgame. And now Rd1 would win. KRB-KBN. Black is slightly better.} Nb4+ {[%emt 0:30:13]} 42. Kd2 {[%emt 0:00:15] Black must now prevent Ba3.} Nxd3 {[%emt 0:00:06]} 43. Kxd3 $15 {[%emt 0:00:03] KB-KB} Kd5 {[%emt 0:00:00]} 44. Bc3 {[%emt 0:00:00]} Bb6 {[%emt 0:00:00]} 45. axb5 {[%emt 0:00:00]} axb5 {[%emt 0:00:00]} 46. Bb2 {[%emt 0:00:00]} f5 {[%emt 0:00:00] Hoping for ...g5.} 47. f3 $1 {[%emt 0:00:00]} g6 {[%emt 0:00:00]} 48. g4 {[%emt 0:00:00]} fxg4 {[%emt 0:00:00]} 49. fxg4 {[%emt 0:00:00]} hxg4 {[%emt 0:00:00]} 50. hxg4 {[%emt 0:00:00]} Ba7 {[%emt 0:00:00] Weighted Error Value: White=0.12 (very precise) /Black=0.10 (very precise) .  Mistake:       	White=1     	Black=1      Inaccurate:     	White=6     	Black=5      OK:         	White=8     	Black=7      Best:        	---       	Black=2      Strong:       	White=1     	Black=1} (50... b4 $1 $15) 1/2-1/2

[Event "Mitropa Cup Women 2024"]
[Site "Apolda"]
[Date "2024.02.19"]
[Round "5.19"]
[White "Schulze, Lara"]
[Black "Berke, Ana"]
[Result "1/2-1/2"]
[ECO "B22"]
[WhiteElo "2285"]
[BlackElo "2092"]
[Annotator "TA"]
[PlyCount "80"]
[EventDate "2024.02.15"]
[EventType "team-tourn"]
[EventCountry "GER"]
[SourceTitle "playchess.com"]
[Source "ChessBase"]
[SourceQuality "1"]
[WhiteTeam "Germany"]
[BlackTeam "Croatia"]
[WhiteTeamCountry "GER"]
[BlackTeamCountry "CRO"]
[TimeControl "40/5400+30:1800+30"]

{[%evp 13,80,0,0,0,0,0,21,4,4,8,26,8,0,0,4,0,0,1,22,20,40,36,47,14,22,7,14,10,15,18,14,0,0,0,16,0,0,0,0,0,0,0,0,0,0,-4,-10,-104,-48,-40,-49,-84,-12,-46,-12,-19,0,-18,-18,-21,-16,-20,-16,-16,0,-20,0,-19,0]} 1. e4 {[%emt 0:00:02][%cal Be2e4,Be4e5][%mdl 32]} c5 {[%emt 0:00:07]} 2. Nf3 {[%emt 0:00:04]} e6 {[%emt 0:00:08]} 3. c3 {[%emt 0:00:05]} Nf6 {[%emt 0:00:26]} 4. e5 {[%emt 0:00:15]} Nd5 {[%emt 0:00:07]} 5. d4 {[%emt 0:00:23]} cxd4 {[%emt 0:00:10]} 6. cxd4 {[%emt 0:00:07]} d6 {[%emt 0:00:07]} 7. Bc4 {[%emt 0:00:11]} Be7 {[%emt 0:00:07]} 8. O-O {[%emt 0:00:14]} O-O {[%emt 0:00:11]} 9. Qe2 {[%emt 0:00:12]} Bd7 {[%emt 0:00:32]} 10. Bxd5 {[%emt 0:10:50]} exd5 {[%emt 0:00:12]} 11. Nc3 {[%emt 0:00:23]} Be6 {[%emt 0:01:51]} 12. Bf4 {[%emt 0:10:50]} Nc6 {[%emt 0:03:23]} 13. Rad1 {[%emt 0:03:49]} a6 {[%emt 0:03:57]} 14. Rfe1 {[%emt 0:03:22]} Rc8 {[%emt 0:02:13]} 15. h3 {[%emt 0:04:32]} b5 {[%emt 0:03:18][%cal Bb7b5,Bb5b4][%mdl 32]} 16. Qd2 {[%emt 0:07:09]} b4 {[%emt 0:16:14]} 17. Na4 {[%emt 0:03:18]} dxe5 {[%emt 0:02:51]} 18. Nxe5 {[%emt 0:04:44]} Nxe5 {[%emt 0:08:14]} 19. Bxe5 {[%emt 0:01:01][%cal Oa4c5]} Bf5 {[%emt 0:03:15]} 20. Rc1 {[%emt 0:07:10] Wehrt Bc2 ab} Re8 {[%emt 0:09:17]} 21. Rxc8 {[%emt 0:04:33]} Qxc8 {[%emt 0:04:26]} 22. Rc1 {[%emt 0:06:16]} Qe6 {[%emt 0:02:17]} 23. Bf4 {[%emt 0:01:18]} h6 {[%emt 0:04:56]} 24. Nc5 {[%emt 0:04:02]} Qg6 {[%emt 0:02:54]} 25. Kh2 {[%emt 0:01:45]} a5 {[%emt 0:09:58]} 26. Re1 {[%emt 0:03:31]} Qc6 {[%emt 0:04:13]} 27. g4 {[%emt 0:11:06]} Bg6 {[%emt 0:08:09]} 28. Re3 {[%emt 0:07:12]} Bf8 {[%emt 0:06:59]} 29. Rxe8 {[%emt 0:01:38]} Qxe8 {[%emt 0:00:10]} 30. Nb3 {[%emt 0:01:29]} (30. Kg2 $11 {hält das Gleichgewicht.}) 30... a4 {[%emt 0:00:28]} ({Besser ist} 30... Qb5 $17 31. Kg2 Be4+ 32. f3 Bb1) 31. Nc5 $15 {[%emt 0:00:29]} Qb5 {[%emt 0:00:51][%cal Ob5f1]} 32. Qe3 {[%emt 0:01:02]} Kh7 {[%emt 0:01:41]} ({Vorzuziehen ist} 32... Qf1 $17 {...Bxc5 wäre nun fies.} 33. f3 Qb1) 33. Kg1 {[%emt 0:00:45]} Qc6 {[%emt 0:01:03]} 34. Kh2 {[%emt 0:01:41] Die Stellung ist ausgeglichen.} Bb1 {[%emt 0:00:19]} 35. a3 {[%emt 0:00:19]} bxa3 {[%emt 0:00:32]} 36. bxa3 {[%emt 0:00:14]} Bg6 {[%emt 0:00:29]} 37. Kg1 {[%emt 0:01:33]} Qb5 {[%emt 0:00:33]} 38. Kg2 {[%emt 0:01:12]} Qc6 {[%emt 0:01:21] Mit der Idee ...Bxc5.} 39. Kg1 {[%emt 0:00:17]} Qb5 {[%emt 0:00:14]} 40. Kg2 {[%emt 0:00:37]} Qc6 {[%emt 0:01:22] Gewichteter Fehlerwert: Weiß=0.10 (sehr präzise) /Schwarz=0.12 (sehr präzise) .  Fehler:       	Weiß=1     	Schwarz=2     Ungenau:       	Weiß=3     	Schwarz=1     OK:         	Weiß=12    	Schwarz=10    Bester:       	Weiß=1     	---} 1/2-1/2

[Event "Mitropa Cup Women 2024"]
[Site "Apolda"]
[Date "2024.02.19"]
[Round "5.20"]
[White "Mihaljevic, Eva"]
[Black "Dolzhykova, Kateryna"]
[Result "0-1"]
[ECO "B72"]
[WhiteElo "2043"]
[BlackElo "2227"]
[Annotator "TA"]
[PlyCount "120"]
[EventDate "2024.02.15"]
[EventType "team-tourn"]
[EventCountry "GER"]
[SourceTitle "playchess.com"]
[Source "ChessBase"]
[SourceQuality "1"]
[WhiteTeam "Croatia"]
[BlackTeam "Germany"]
[WhiteTeamCountry "CRO"]
[BlackTeamCountry "GER"]
[TimeControl "40/5400+30:1800+30"]

{[%evp 18,120,20,13,11,0,0,9,7,0,2,3,17,6,26,0,0,-10,-4,-10,-11,-14,-7,-13,-12,-14,-10,-12,0,0,0,0,0,-10,0,0,0,-10,-12,-19,-19,-27,0,0,0,0,0,0,0,-14,-14,-1777,-1557,-1481,-1452,-1264,0,0,0,0,0,0,0,0,0,0,0,0,0,0,0,0,0,0,0,0,0,0,0,0,0,0,0,0,0,0,0,-8,-8,-29978,-29979,-29979,-29980,-29980,-29981,-29982,-29983,-29983,-29984,-29984,-29985,-29985,0,-29986,-29987]} 1. e4 {[%emt 0:00:02]} c5 {[%emt 0:00:04]} 2. Nf3 {[%emt 0:00:05]} d6 {[%emt 0:00:02]} 3. d4 {[%emt 0:00:08]} cxd4 {[%emt 0:00:06]} 4. Nxd4 {[%emt 0:00:05]} Nf6 {[%emt 0:00:03]} 5. Nc3 {[%emt 0:00:08]} Nc6 {[%emt 0:00:04]} 6. Be2 {[%emt 0:01:41]} g6 {[%emt 0:00:18]} 7. Be3 {[%emt 0:00:19]} Bg7 {[%emt 0:00:07]} 8. Qd2 {[%emt 0:00:27]} Ng4 {[%emt 0:00:25]} 9. Bxg4 {[%emt 0:00:26]} Bxg4 {[%emt 0:00:02]} 10. f3 {[%emt 0:00:10] Black must now prevent Nxc6.} Bd7 {[%emt 0:00:39]} 11. O-O-O {[%emt 0:02:42]} Ne5 {[%emt 0:00:38]} 12. b3 {[%emt 0:11:11] Wards off Nc4} Qa5 {[%emt 0:00:37] The position is equal.} 13. Kb1 {[%emt 0:08:26]} Rc8 {[%emt 0:00:18]} 14. Nd5 {[%emt 0:03:19]} Qxd2 {[%emt 0:00:12]} 15. Rxd2 {[%emt 0:00:51]} e6 {[%emt 0:00:11]} 16. Nb4 {[%emt 0:02:55]} Rc3 {[%emt 0:15:29]} 17. Nd3 {[%emt 0:07:38]} Nxd3 {[%emt 0:06:47]} 18. cxd3 {[%emt 0:05:53]} a6 {[%emt 0:10:19]} 19. Ne2 {[%emt 0:04:28]} Rc7 {[%emt 0:02:31]} 20. Rc1 {[%emt 0:12:21]} Rxc1+ {[%emt 0:00:16]} 21. Kxc1 {[%emt 0:02:12]} Ke7 {[%emt 0:05:02]} 22. Rc2 {[%emt 0:02:03]} h5 {[%emt 0:01:51]} 23. Kd2 {[%emt 0:02:03]} Rc8 {[%emt 0:00:53] Against Rc7} 24. Rxc8 {[%emt 0:02:24]} Bxc8 $11 {[%emt 0:00:02][%mdl 4096] Endgame. KBB-KBN} 25. Bd4 {[%emt 0:06:06]} e5 {[%emt 0:03:05]} 26. Be3 {[%emt 0:07:09]} Be6 {[%emt 0:03:47]} 27. d4 {[%emt 0:03:08]} d5 {[%emt 0:11:09]} 28. Kd3 {[%emt 0:01:22]} dxe4+ {[%emt 0:04:41]} 29. fxe4 {[%emt 0:05:40]} f5 {[%emt 0:01:28]} 30. dxe5 {[%emt 0:03:27]} Bxe5 {[%emt 0:00:16]} 31. Nf4 {[%emt 0:00:27]} Kf7 {[%emt 0:08:28]} 32. Nxe6 {[%emt 0:04:54]} Kxe6 {[%emt 0:00:04] KB-KB} 33. h3 {[%emt 0:01:21]} f4 {[%emt 0:01:00]} 34. Bd4 {[%emt 0:00:29][%mdl 8192]} (34. Bf2 $11) 34... Bxd4 $1 $19 {[%emt 0:04:26]} 35. Kxd4 {[%emt 0:00:06] KP-KP} g5 {[%emt 0:00:01] ...g4 is the strong threat.} 36. e5 {[%emt 0:01:13]} g4 $2 {[%emt 0:06:43]} (36... a5 $19 37. h4 gxh4) 37. hxg4 $1 $11 {[%emt 0:00:39]} hxg4 {[%emt 0:00:18]} 38. Ke4 {[%emt 0:00:56]} f3 {[%emt 0:00:14]} 39. gxf3 {[%emt 0:00:29]} g3 {[%emt 0:00:19]} 40. Ke3 $1 {[%emt 0:00:16] And now f4 would win.} ({Not} 40. f4 $2 g2 41. f5+ Kd7 $19) 40... Kxe5 {[%emt 0:00:57] K3P-K3P} 41. f4+ {[%emt 0:03:40]} Kf5 {[%emt 0:00:06]} 42. Kf3 {[%emt 0:00:10]} g2 {[%emt 0:00:05]} 43. Kxg2 {[%emt 0:00:04]} Kxf4 {[%emt 0:00:05] KPP-KPP} 44. Kf2 {[%emt 0:00:20]} Ke4 {[%emt 0:00:52]} 45. Ke2 {[%emt 0:00:07]} b5 {[%emt 0:00:24]} 46. a3 {[%emt 0:19:37]} a5 {[%emt 0:00:49]} (46... Kd4 $5 47. Kd2 $8 a5 $11) 47. Kd2 $1 {[%emt 0:00:58]} Kd4 {[%emt 0:00:42]} 48. Kc2 {[%emt 0:01:01]} Ke4 {[%emt 0:01:50]} 49. Kd2 $1 {[%emt 0:05:54]} Kd4 {[%emt 0:01:33]} 50. Kc2 {[%emt 0:00:07]} Ke3 {[%emt 0:01:06]} 51. Kc3 {[%emt 0:00:25]} Ke4 {[%emt 0:00:11]} 52. Kc2 {[%emt 0:00:14]} b4 {[%emt 0:01:21] ( -> ...Ke3)} 53. axb4 $2 {[%emt 0:02:42][%mdl 8192]} (53. Kd2 $11) 53... axb4 {[%emt 0:00:06] KP-KP} 54. Kd2 {[%emt 0:01:17]} Kd4 {[%emt 0:00:05]} 55. Kc2 {[%emt 0:00:38] [#]} Ke3 $1 {[%emt 0:00:07]} 56. Kb2 {[%emt 0:00:55]} Kd2 {[%emt 0:00:17]} 57. Ka1 {[%emt 0:00:38]} Kc3 {[%emt 0:00:19]} 58. Ka2 {[%emt 0:00:09]} Kc2 {[%emt 0:00:04]} 59. Ka1 {[%emt 0:00:31]} Kxb3 {[%emt 0:00:06]} 60. Kb1 {[%emt 0:00:44] [#]} Ka3 $1 {[%emt 0:00:06] Weighted Error Value: White=0.25 (precise) /Black=0.11 (very precise) .  Loses game:     	White=2     	---        Inaccurate:     	White=1     	Black=1      OK:         	White=21    	Black=15     Best:        	White=3     	Black=3      Strong:       	White=3     	Black=1} 0-1

[Event "Mitropa Cup Women 2024"]
[Site "Apolda"]
[Date "2024.02.20"]
[Round "6.1"]
[White "Terbe, Julianna"]
[Black "Polterauer, Chiara"]
[Result "1/2-1/2"]
[ECO "A17"]
[WhiteElo "2315"]
[BlackElo "2189"]
[Annotator "RC"]
[PlyCount "91"]
[EventDate "2024.02.15"]
[EventType "team-tourn"]
[EventCountry "GER"]
[SourceTitle "playchess.com"]
[Source "ChessBase"]
[SourceQuality "1"]
[WhiteTeam "Hungary"]
[BlackTeam "Austria"]
[WhiteTeamCountry "HUN"]
[BlackTeamCountry "AUT"]
[TimeControl "40/5400+30:1800+30"]

1. c4 {[%emt 0:00:05]} c5 {[%emt 0:00:07]} 2. Nc3 {[%emt 0:00:07]} Nf6 {[%emt 0:00:22]} 3. Nf3 {[%emt 0:00:11]} d5 {[%emt 0:00:14]} 4. cxd5 {[%emt 0:00:20]} Nxd5 {[%emt 0:00:07]} 5. e3 {[%emt 0:00:12]} e6 {[%emt 0:00:20]} 6. Nxd5 {[%emt 0:00:09]} exd5 {[%emt 0:00:13]} 7. Bb5+ {[%emt 0:00:22]} Bd7 {[%emt 0:00:55]} 8. Bxd7+ {[%emt 0:00:15]} Qxd7 {[%emt 0:00:51]} 9. b3 {[%emt 0:00:26]} Be7 {[%emt 0:03:36]} 10. Ba3 {[%emt 0:00:51]} O-O {[%emt 0:05:00]} 11. O-O {[%emt 0:00:44]} b6 {[%emt 0:01:34]} 12. d4 {[%emt 0:01:45]} a5 {[%emt 0:09:21]} 13. Rc1 {[%emt 0:01:48]} Na6 {[%emt 0:01:47]} 14. dxc5 {[%emt 0:10:02]} bxc5 {[%emt 0:02:24]} 15. Ne5 {[%emt 0:02:32]} Qd6 {[%emt 0:10:38]} 16. Nd3 {[%emt 0:02:14]} Rac8 {[%emt 0:00:32]} 17. Qf3 {[%emt 0:14:44]} Nb4 {[%emt 0:07:14]} 18. Bxb4 {[%emt 0:00:29]} axb4 {[%emt 0:00:43]} 19. Rfd1 {[%emt 0:03:09]} Bf6 {[%emt 0:05:43]} 20. g3 {[%emt 0:07:23]} Rfd8 {[%emt 0:04:13]} 21. Nf4 {[%emt 0:05:04]} d4 {[%emt 0:00:28]} 22. Rc2 {[%emt 0:05:16]} Be5 {[%emt 0:08:04]} 23. exd4 {[%emt 0:15:27]} cxd4 {[%emt 0:00:33]} 24. Rxc8 {[%emt 0:00:11]} Rxc8 {[%emt 0:00:05]} 25. Nd3 {[%emt 0:00:38]} Bf6 {[%emt 0:02:46]} 26. Qf5 {[%emt 0:04:58]} Ra8 {[%emt 0:08:43]} 27. Rd2 {[%emt 0:03:56]} g6 {[%emt 0:08:39]} 28. Qb5 {[%emt 0:00:19]} Rb8 {[%emt 0:02:09]} 29. Qc4 {[%emt 0:00:05]} Qe7 {[%emt 0:01:54]} 30. Qc6 {[%emt 0:01:35]} Kg7 {[%emt 0:01:34]} 31. Rc2 {[%emt 0:00:26]} Qa7 {[%emt 0:04:25]} 32. Qf3 {[%emt 0:02:06]} Rb6 {[%emt 0:02:17]} 33. Qd5 {[%emt 0:04:44]} Qe7 {[%emt 0:02:22]} 34. Rc4 {[%emt 0:04:46]} Qe2 {[%emt 0:04:14]} 35. Nf4 {[%emt 0:01:54]} Qe7 {[%emt 0:01:48]} 36. Qf3 {[%emt 0:01:28]} Be5 {[%emt 0:00:13]} 37. Nd3 {[%emt 0:03:01]} Bf6 {[%emt 0:00:08]} 38. Kg2 {[%emt 0:01:03]} Rb5 {[%emt 0:00:48]} 39. Qc6 {[%emt 0:02:38]} Ra5 {[%emt 0:01:34]} 40. Rc2 {[%emt 0:02:21]} Rf5 {[%emt 0:00:48]} 41. Nf4 {[%emt 0:07:44]} Qd8 {[%emt 0:14:23]} 42. Qb7 {[%emt 0:03:28]} Qd6 {[%emt 0:01:34]} 43. Nd3 {[%emt 0:09:23]} Qe6 {[%emt 0:00:37]} 44. Qc6 {[%emt 0:02:42]} Qe7 {[%emt 0:01:29]} 45. Nf4 {[%emt 0:04:20]} Qd8 {[%emt 0:00:13]} 46. Qb7 {[%emt 0:01:12]} 1/2-1/2